bitfinex/quotes_BTCUSD_20240906
["timestamp","ask_amount","ask_price","bid_price","bid_amount"]
[1725666587785,1.59147618,54063.0,54062.0,0.139628]
[1725666588050,1.59147618,54063.0,54062.0,0.137628]
[1725666588295,1.48539565,54063.0,54062.0,0.137628]
[1725666588536,1.59647618,54063.0,54062.0,0.137628]
[1725666588760,1.50939876,54063.0,54062.0,0.137628]
[1725666589423,1.50939876,54063.0,54062.0,0.148628]
[1725666589674,1.50939876,54063.0,54062.0,0.137628]
[1725666590112,1.50939876,54063.0,54062.0,0.151628]
[1725666590329,1.50939876,54063.0,54062.0,0.137628]
[1725666590569,1.50939876,54063.0,54062.0,0.138628]
[1725666590788,1.50939876,54063.0,54062.0,0.152628]
[1725666591002,1.50939876,54063.0,54062.0,1.37630933]
[1725666591217,1.50939876,54063.0,54062.0,1.37730933]
[1725666591645,1.64829179,54063.0,54062.0,1.37730933]
[1725666591924,1.50939876,54063.0,54062.0,1.37630933]
[1725666592155,1.48039565,54063.0,54062.0,1.37730933]
[1725666592374,1.61928868,54063.0,54062.0,1.39130933]
[1725666592824,1.61928868,54063.0,54062.0,1.37730933]
[1725666593049,1.61928868,54063.0,54062.0,1.39130933]
[1725666593273,1.48039565,54063.0,54062.0,1.39130933]
[1725666594224,1.28620124,54063.0,54062.0,1.39130933]
[1725666594496,1.42511627,54063.0,54062.0,1.39130933]
[1725666595190,1.28620124,54063.0,54062.0,1.39130933]
[1725666595629,1.39732759,54063.0,54062.0,1.39130933]
[1725666595859,1.39733296,54063.0,54062.0,1.39130933]
[1725666596102,1.28620124,54063.0,54062.0,1.39130933]
[1725666596570,1.61930797,54063.0,54062.0,1.39130933]
[1725666596798,1.48039565,54063.0,54062.0,1.39130933]
[1725666597248,1.50939822,54063.0,54062.0,1.39130933]
[1725666602050,1.48039565,54063.0,54062.0,1.39130933]
[1725666603604,1.50415057,54063.0,54062.0,1.39130933]
[1725666604051,1.41353111,54063.0,54062.0,1.39130933]
[1725666604269,1.41353111,54063.0,54062.0,1.59130933]
[1725666605380,1.44253378,54063.0,54062.0,1.59130933]
[1725666606342,1.61087214,54063.0,54062.0,1.45530933]
[1725666606574,1.72207214,54063.0,54062.0,1.45530933]
[1725666606820,2.09201014,54063.0,54062.0,1.45530933]
[1725666607038,1.44253378,54063.0,54062.0,1.45530933]
[1725666607751,1.33895883,54063.0,54062.0,1.57660933]
[1725666607974,1.44253378,54063.0,54062.0,1.57660933]
[1725666608425,1.58150259,54063.0,54062.0,1.57660933]
[1725666608898,1.44253378,54063.0,54062.0,1.57660933]
[1725666609347,1.33895883,54063.0,54062.0,1.57660933]
[1725666609562,1.44253378,54063.0,54062.0,1.57660933]
[1725666610986,1.41353111,54063.0,54062.0,1.57660933]
[1725666611216,1.44253475,54063.0,54062.0,1.57660933]
[1725666615090,1.41353111,54063.0,54062.0,1.57660933]
[1725666617604,1.30995616,54063.0,54062.0,1.67820933]
[1725666617846,0.94001816,54063.0,54062.0,1.67820933]
[1725666618284,1.10802044,54063.0,54062.0,1.67820933]
[1725666619205,1.10801646,54063.0,54062.0,1.67820933]
[1725666619445,0.58472328,54063.0,54062.0,1.68220933]
[1725666619684,0.58472328,54063.0,54062.0,1.70520933]
[1725666620129,0.66811492,54063.0,54062.0,1.70520933]
[1725666620386,0.668107,54063.0,54062.0,1.70520933]
[1725666621297,0.58472328,54063.0,54062.0,1.70520933]
[1725666622185,0.555721,54063.0,54062.0,1.70520933]
[1725666622864,0.6391066,54063.0,54062.0,1.70520933]
[1725666623512,0.555721,54063.0,54062.0,1.7050426]
[1725666623737,0.6391066,54063.0,54062.0,1.7050426]
[1725666626511,1.0090446,54063.0,54062.0,1.7050426]
[1725666626729,0.555721,54063.0,54062.0,1.7050426]
[1725666627406,0.58472171,54063.0,54062.0,1.7050426]
[1725666627627,0.58472171,54063.0,54062.0,1.7040426]
[1725666627853,0.58472171,54063.0,54062.0,1.6900426]
[1725666628333,0.64029581,54063.0,54062.0,1.6900426]
[1725666628557,0.58472171,54063.0,54062.0,1.6900426]
[1725666628989,0.58472171,54063.0,54062.0,1.7000426]
[1725666629429,0.58472171,54063.0,54062.0,1.7140426]
[1725666630552,0.95465971,54063.0,54062.0,1.7140426]
[1725666630795,0.58472171,54063.0,54062.0,1.7140426]
[1725666631231,0.95465971,54063.0,54062.0,1.7140426]
[1725666631471,0.58472171,54063.0,54062.0,1.7140426]
[1725666632138,0.555721,54063.0,54062.0,1.7140426]
[1725666633703,0.554907,54063.0,54062.0,1.7140426]
[1725666634606,0.555722,54063.0,54062.0,1.7140426]
[1725666637149,0.92566,54063.0,54062.0,1.7140426]
[1725666637374,0.555722,54063.0,54062.0,1.7140426]
[1725666638749,0.58472281,54063.0,54062.0,1.7140426]
[1725666642149,0.555722,54063.0,54062.0,1.7140426]
[1725666643235,0.185784,54063.0,54062.0,1.7140426]
[1725666643461,0.555722,54063.0,54062.0,1.7140426]
[1725666648625,0.58472277,54063.0,54062.0,1.7140426]
[1725666649823,0.95466077,54063.0,54062.0,1.7140426]
[1725666650301,0.58472277,54063.0,54062.0,1.7140426]
[1725666651201,0.58472277,54063.0,54062.0,1.7100426]
[1725666651423,0.58472277,54063.0,54062.0,1.6124426]
[1725666651651,0.95466077,54063.0,54062.0,1.6124426]
[1725666652136,0.92566,54063.0,54062.0,1.6124426]
[1725666653965,0.66681109,54063.0,54062.0,1.6124426]
[1725666654224,0.85178009,54063.0,54062.0,1.6124426]
[1725666655397,0.9073286,54063.0,54062.0,1.6124426]
[1725666655903,0.93632921,54063.0,54062.0,1.6124426]
[1725666656132,1.03990416,54063.0,54062.0,1.6124426]
[1725666657027,0.98435565,54063.0,54062.0,1.6124426]
[1725666657223,1.03992151,54063.0,54062.0,1.6124426]
[1725666657445,0.98435565,54063.0,54062.0,1.6124426]
[1725666658455,0.98516965,54063.0,54062.0,1.6124426]
[1725666659568,0.98516965,54063.0,54062.0,1.6084426]
[1725666659796,0.98516965,54063.0,54062.0,1.5854426]
[1725666660059,0.98516965,54063.0,54062.0,1.5894426]
[1725666660285,0.98516965,54063.0,54062.0,1.5854426]
[1725666661352,1.06849242,54063.0,54062.0,1.5854426]
[1725666662033,1.03949181,54063.0,54062.0,1.4641426]
[1725666662456,1.14239181,54063.0,54062.0,1.4641426]
[1725666662920,1.03949181,54063.0,54062.0,1.4641426]
[1725666663345,0.95616904,54063.0,54062.0,1.4641426]
[1725666665368,1.09504032,54063.0,54062.0,1.4641426]
[1725666665822,0.95616904,54063.0,54062.0,1.4641426]
[1725666667832,1.41084562,54063.0,54062.0,1.4641426]
[1725666668054,0.95616904,54063.0,54062.0,1.4641426]
[1725666668756,1.35510785,54063.0,54062.0,1.4641426]
[1725666668981,0.98516985,54063.0,54062.0,1.4641426]
[1725666670753,1.1242455,54063.0,54062.0,1.4641426]
[1725666672016,1.09524469,54063.0,54062.0,1.4641426]
[1725666673327,1.0237411,54063.0,54062.0,1.4641426]
[1725666673967,0.92016615,54063.0,54062.0,1.4641426]
[1725666674190,0.92016615,54063.0,54062.0,1.5725426]
[1725666675105,0.13000074,54070.0,54062.0,1.5725426]
[1725666675106,0.08343609,54068.0,54065.0,0.81929614]
[1725666675380,0.02900074,54070.0,54069.0,0.796945]
[1725666675585,0.02900074,54070.0,54069.0,1.189842]
[1725666676024,0.02900074,54070.0,54069.0,1.569739]
[1725666676245,0.000814,54073.0,54072.0,0.588815]
[1725666676465,0.000814,54073.0,54072.0,1.36050695]
[1725666676733,0.000814,54073.0,54072.0,2.10026095]
[1725666677175,0.000814,54073.0,54072.0,2.10226095]
[1725666677386,0.0010332,54086.0,54075.0,1.06421495]
[1725666677625,0.0010332,54086.0,54075.0,1.69517095]
[1725666678312,0.0010332,54086.0,54085.0,1.556358]
[1725666678545,0.0010332,54086.0,54085.0,1.579358]
[1725666678773,0.0010332,54086.0,54085.0,1.581358]
[1725666679000,0.0010332,54086.0,54085.0,1.579358]
[1725666679451,0.0010332,54086.0,54085.0,1.569358]
[1725666679672,0.0010332,54086.0,54085.0,1.20357]
[1725666679902,0.0010332,54086.0,54085.0,0.833782]
[1725666679903,0.03001566,54086.0,54085.0,0.833782]
[1725666680126,0.03001566,54086.0,54085.0,0.2791]
[1725666681466,0.03001566,54086.0,54085.0,0.463994]
[1725666681681,0.03001566,54086.0,54085.0,0.449994]
[1725666681929,0.03001566,54086.0,54085.0,0.463994]
[1725666682145,0.03001566,54086.0,54085.0,0.477994]
[1725666682146,0.0010332,54086.0,54085.0,0.477994]
[1725666682613,0.0010332,54086.0,54085.0,1.89607685]
[1725666682861,0.0010332,54086.0,54085.0,1.88407685]
[1725666683796,0.184829,54104.0,54102.0,1.24366065]
[1725666684038,0.184829,54104.0,54103.0,1.27066065]
[1725666684973,0.00704308,54118.0,54103.0,1.27066065]
[1725666684974,0.184826,54105.0,54103.0,1.27066065]
[1725666685214,0.184826,54105.0,54103.0,1.28466065]
[1725666685463,0.184826,54105.0,54103.0,1.27066065]
[1725666685937,0.184826,54105.0,54103.0,1.28466065]
[1725666686162,0.184826,54105.0,54103.0,1.27066065]
[1725666686623,0.184826,54105.0,54103.0,1.28466065]
[1725666687123,0.184829,54104.0,54103.0,1.28466065]
[1725666687348,0.184829,54104.0,54103.0,1.29066065]
[1725666688024,0.21380848,54104.0,54103.0,1.28466065]
[1725666688243,0.21380848,54104.0,54103.0,1.27066065]
[1725666688528,0.02897948,54104.0,54103.0,1.27066065]
[1725666688750,0.02897948,54104.0,54103.0,1.28466065]
[1725666689438,0.95312448,54104.0,54103.0,1.27066065]
[1725666689683,0.77740443,54104.0,54103.0,1.25766065]
[1725666689939,1.14706243,54104.0,54103.0,1.26366065]
[1725666690435,1.14706243,54104.0,54103.0,1.25766065]
[1725666690908,1.14706243,54104.0,54103.0,1.25966065]
[1725666691146,1.14706243,54104.0,54103.0,1.24566065]
[1725666691381,1.14706243,54104.0,54103.0,1.25766065]
[1725666691613,1.14706243,54104.0,54103.0,1.25166065]
[1725666692106,1.58994095,54104.0,54103.0,1.26566065]
[1725666692397,1.58994095,54104.0,54103.0,1.25166065]
[1725666692616,1.58994095,54104.0,54103.0,1.26566065]
[1725666692844,1.58994095,54104.0,54103.0,1.25166065]
[1725666693086,2.09539895,54104.0,54103.0,1.24366065]
[1725666693318,2.09539895,54104.0,54103.0,1.24866065]
[1725666693551,2.07539895,54104.0,54103.0,1.24866065]
[1725666693788,2.07621395,54104.0,54103.0,1.24366065]
[1725666694241,2.07621395,54104.0,54103.0,1.26566065]
[1725666694458,2.07621395,54104.0,54103.0,1.25166065]
[1725666694680,2.07621395,54104.0,54103.0,1.25266065]
[1725666694931,2.07721395,54104.0,54103.0,1.24366065]
[1725666695375,2.07721395,54104.0,54103.0,1.25366065]
[1725666696516,1.94041395,54104.0,54103.0,1.25366065]
[1725666696737,1.46855595,54104.0,54103.0,1.25366065]
[1725666696956,1.47255595,54104.0,54103.0,1.25366065]
[1725666697169,1.47255595,54104.0,54103.0,1.24366065]
[1725666697388,1.46855595,54104.0,54103.0,1.24366065]
[1725666697617,1.46855595,54104.0,54103.0,1.25566065]
[1725666697828,1.10089795,54104.0,54103.0,1.25566065]
[1725666698260,1.09889795,54104.0,54103.0,1.24366065]
[1725666698710,1.09889795,54104.0,54103.0,1.25766065]
[1725666698935,0.90496,54104.0,54103.0,1.24366065]
[1725666699151,0.90496,54104.0,54103.0,1.28466065]
[1725666699638,0.535302,54104.0,54103.0,1.28766065]
[1725666700102,0.535302,54104.0,54103.0,1.25766065]
[1725666700319,0.72923995,54104.0,54103.0,1.25766065]
[1725666700530,0.72923995,54104.0,54103.0,1.25166065]
[1725666700744,1.46855595,54104.0,54103.0,1.26566065]
[1725666700956,1.46855595,54104.0,54103.0,1.24366065]
[1725666701168,1.46855595,54104.0,54103.0,1.25466065]
[1725666701348,1.46855595,54104.0,54103.0,1.26866065]
[1725666701593,1.46855595,54104.0,54103.0,1.25466065]
[1725666702434,1.09889795,54104.0,54103.0,1.50096065]
[1725666702648,1.09889795,54104.0,54103.0,1.38626065]
[1725666703081,1.09889795,54104.0,54103.0,1.39426065]
[1725666703793,1.09889795,54104.0,54103.0,1.38026065]
[1725666704010,1.09889795,54104.0,54103.0,1.39426065]
[1725666704240,1.09889795,54104.0,54103.0,1.25166065]
[1725666704491,1.72453296,54104.0,54103.0,1.25166065]
[1725666704711,1.57765595,54104.0,54103.0,1.26566065]
[1725666705865,1.46855595,54104.0,54103.0,1.26566065]
[1725666706314,1.09889795,54104.0,54103.0,1.26566065]
[1725666706542,1.09889795,54104.0,54103.0,1.39546065]
[1725666707963,1.09689795,54104.0,54103.0,1.39546065]
[1725666710166,1.09689795,54104.0,54103.0,1.50456065]
[1725666711437,1.12587936,54104.0,54103.0,1.50456065]
[1725666711888,1.49553736,54104.0,54103.0,1.26566065]
[1725666712104,1.46655595,54104.0,54103.0,1.26566065]
[1725666712547,1.72233386,54104.0,54103.0,1.26566065]
[1725666712780,1.381718,54104.0,54103.0,1.26566065]
[1725666713013,1.57565595,54104.0,54103.0,1.26566065]
[1725666713933,1.381718,54104.0,54103.0,1.26566065]
[1725666714155,1.57565595,54104.0,54103.0,1.26566065]
[1725666714577,1.59684095,54104.0,54103.0,1.26566065]
[1725666715513,1.59684095,54104.0,54103.0,1.26556065]
[1725666715728,1.59684095,54104.0,54103.0,1.26506065]
[1725666716165,1.59684095,54104.0,54103.0,1.26496065]
[1725666716376,1.59684095,54104.0,54103.0,1.26476065]
[1725666716592,1.59684095,54104.0,54103.0,1.26436065]
[1725666717045,1.59661849,54104.0,54103.0,1.26426065]
[1725666717255,1.59661849,54104.0,54103.0,1.46386065]
[1725666717469,1.59661849,54104.0,54103.0,1.46366065]
[1725666717683,1.59661849,54104.0,54103.0,1.46356065]
[1725666718564,1.59661849,54104.0,54103.0,1.46518865]
[1725666718786,1.59743249,54104.0,54103.0,1.46518865]
[1725666719269,1.40349454,54104.0,54103.0,1.46518865]
[1725666719494,1.57124422,54104.0,54103.0,1.46518865]
[1725666719948,1.48833249,54104.0,54103.0,1.46518865]
[1725666720177,1.57144947,54104.0,54103.0,1.46518865]
[1725666720641,1.48833249,54104.0,54103.0,1.46518865]
[1725666722100,2.15081337,54104.0,54103.0,1.46518865]
[1725666722552,2.3380727,54104.0,54103.0,1.46518865]
[1725666722804,2.15434982,54104.0,54103.0,1.46518865]
[1725666723262,2.15434982,54104.0,54103.0,1.45718865]
[1725666723723,2.15534982,54104.0,54103.0,1.45718865]
[1725666723948,2.15534982,54104.0,54103.0,1.44318865]
[1725666724149,2.15534982,54104.0,54103.0,1.45718865]
[1725666724150,2.15434982,54104.0,54103.0,1.45718865]
[1725666724494,1.97009049,54104.0,54103.0,1.44318865]
[1725666724715,1.97009049,54104.0,54103.0,1.45518865]
[1725666724936,1.96709049,54104.0,54103.0,1.45518865]
[1725666725186,1.96809049,54104.0,54103.0,1.45518865]
[1725666725411,1.96809049,54104.0,54103.0,1.46918865]
[1725666725630,2.15534982,54104.0,54103.0,1.44318865]
[1725666725853,2.34033289,54104.0,54103.0,1.45618865]
[1725666726072,2.15534982,54104.0,54103.0,1.45618865]
[1725666726533,2.15434982,54104.0,54103.0,1.45618865]
[1725666727020,2.15734982,54104.0,54103.0,1.44318865]
[1725666727446,1.96709049,54104.0,54103.0,1.45718865]
[1725666727660,1.96709049,54104.0,54103.0,1.44318865]
[1725666727871,2.15434982,54104.0,54103.0,1.44318865]
[1725666728084,2.15434982,54104.0,54103.0,1.45618865]
[1725666728549,2.15534982,54104.0,54103.0,1.45618865]
[1725666728974,2.15534982,54104.0,54103.0,1.44318865]
[1725666729186,1.96809049,54104.0,54103.0,1.44318865]
[1725666730298,1.96809049,54104.0,54103.0,1.45718865]
[1725666730299,1.96709049,54104.0,54103.0,1.45718865]
[1725666730506,2.15434982,54104.0,54103.0,1.45718865]
[1725666730729,2.15734982,54104.0,54103.0,1.45718865]
[1725666731169,1.96709049,54104.0,54103.0,1.45718865]
[1725666731390,2.15448564,54104.0,54103.0,1.45718865]
[1725666731612,1.96809049,54104.0,54103.0,1.45718865]
[1725666732347,2.15548995,54104.0,54103.0,1.45718865]
[1725666733714,1.96809049,54104.0,54103.0,1.45718865]
[1725666733932,2.15548995,54104.0,54103.0,1.45718865]
[1725666735250,1.96809049,54104.0,54103.0,1.45718865]
[1725666735673,1.99707133,54104.0,54103.0,1.45718865]
[1725666736120,2.18447561,54104.0,54103.0,1.45718865]
[1725666736993,1.51177966,54104.0,54103.0,1.45718865]
[1725666737284,1.51831333,54104.0,54103.0,1.56498865]
[1725666737504,1.68489864,54104.0,54103.0,1.56498865]
[1725666737949,1.51831333,54104.0,54103.0,1.56498865]
[1725666738165,1.42778174,54104.0,54103.0,1.56498865]
[1725666738604,1.59436947,54104.0,54103.0,1.56498865]
[1725666738823,1.42778174,54104.0,54103.0,1.56498865]
[1725666739050,0.75164666,54104.0,54103.0,1.72528865]
[1725666739297,0.95471738,54104.0,54103.0,1.72528865]
[1725666739521,1.0645454,54104.0,54103.0,1.72528865]
[1725666739993,1.0645454,54104.0,54103.0,1.71128865]
[1725666740213,0.92473654,54104.0,54103.0,1.71128865]
[1725666740439,0.92473654,54104.0,54103.0,1.72528865]
[1725666740663,0.92573654,54104.0,54103.0,1.72528865]
[1725666741103,0.92473654,54104.0,54103.0,1.71128865]
[1725666741549,0.92473654,54104.0,54103.0,1.73028865]
[1725666741736,1.00824041,54104.0,54103.0,1.73028865]
[1725666741978,1.00824041,54104.0,54103.0,1.72528865]
[1725666743092,1.00824041,54104.0,54103.0,1.71128865]
[1725666743332,1.00824041,54104.0,54103.0,1.72528865]
[1725666743547,1.00824041,54104.0,54103.0,1.73128865]
[1725666743783,0.08327681,54106.0,54103.0,0.72304824]
[1725666743996,0.61000487,54104.0,54103.0,0.72304824]
[1725666744203,0.554487,54104.0,54103.0,0.72304824]
[1725666744413,0.61000468,54104.0,54103.0,0.72304824]
[1725666744817,0.61000468,54104.0,54103.0,0.71704824]
[1725666745080,0.42517568,54104.0,54103.0,0.72104824]
[1725666745515,0.61000468,54104.0,54103.0,0.72104824]
[1725666745727,0.63898528,54104.0,54103.0,0.72104824]
[1725666746207,0.00022312,54107.0,54106.0,0.2366]
[1725666746457,0.00022312,54107.0,54106.0,0.2596]
[1725666746681,0.00022312,54107.0,54106.0,0.49292024]
[1725666747991,0.00022312,54107.0,54106.0,0.50692024]
[1725666748206,0.55467812,54107.0,54106.0,0.49592024]
[1725666748425,0.98640564,54107.0,54106.0,0.23632024]
[1725666748635,0.98640564,54107.0,54106.0,0.25032024]
[1725666748850,1.11816199,54107.0,54106.0,0.25032024]
[1725666749067,1.11816199,54107.0,54106.0,0.25432024]
[1725666749068,0.55467812,54107.0,54106.0,0.25432024]
[1725666749283,0.55467812,54107.0,54106.0,0.50992024]
[1725666749494,0.18504112,54107.0,54106.0,0.50992024]
[1725666749708,0.18504112,54107.0,54106.0,0.50692024]
[1725666749939,0.55467812,54107.0,54106.0,0.49292024]
[1725666750172,0.55467812,54107.0,54106.0,0.50692024]
[1725666750380,0.55467812,54107.0,54106.0,0.49292024]
[1725666750597,0.55467812,54107.0,54106.0,0.50192024]
[1725666750805,0.55467812,54107.0,54106.0,0.51592024]
[1725666751018,0.55467812,54107.0,54106.0,0.50692024]
[1725666751443,0.55467812,54107.0,54106.0,0.51392024]
[1725666751856,0.18504112,54107.0,54106.0,0.51392024]
[1725666754068,0.55467812,54107.0,54106.0,0.51392024]
[1725666754274,0.55549212,54107.0,54106.0,0.51392024]
[1725666755148,0.00103712,54107.0,54106.0,0.51392024]
[1725666755375,0.00103712,54107.0,54106.0,0.69874224]
[1725666755853,0.0107094,54109.0,54108.0,0.2326]
[1725666756095,0.0107094,54109.0,54108.0,0.2596]
[1725666757286,0.5651454,54109.0,54108.0,0.2646]
[1725666757539,0.5651454,54109.0,54108.0,0.005]
[1725666757540,2.08761892,54109.0,54108.0,0.005]
[1725666757819,2.00438838,54109.0,54108.0,0.005]
[1725666758038,1.9146174,54109.0,54108.0,0.019]
[1725666758301,1.4118934,54109.0,54108.0,0.019]
[1725666758528,1.60574027,54109.0,54108.0,0.019]
[1725666759007,1.60574027,54109.0,54108.0,0.014]
[1725666759465,1.6840005,54109.0,54108.0,0.014]
[1725666759699,1.85162414,54109.0,54108.0,0.014]
[1725666759939,1.293708,54108.0,54107.0,0.23228312]
[1725666760359,1.40462478,54108.0,54107.0,0.23228312]
[1725666760570,1.293708,54108.0,54107.0,0.23228312]
[1725666760780,1.40462138,54108.0,54107.0,0.23228312]
[1725666761191,1.40462138,54108.0,54107.0,0.24628312]
[1725666761399,1.293708,54108.0,54107.0,0.24628312]
[1725666761617,1.40462117,54108.0,54107.0,0.24628312]
[1725666761827,1.293708,54108.0,54107.0,0.24628312]
[1725666763123,1.46864873,54108.0,54107.0,0.24628312]
[1725666763345,1.47064873,54108.0,54107.0,0.24628312]
[1725666763554,1.60929173,54108.0,54107.0,0.24628312]
[1725666763989,1.60929173,54108.0,54107.0,0.23228312]
[1725666764214,1.60729173,54108.0,54107.0,0.23228312]
[1725666764461,1.60729173,54108.0,54106.0,0.2]
[1725666764462,1.663366,54107.0,54106.0,0.2]
[1725666764676,1.84834907,54107.0,54106.0,0.2]
[1725666765413,1.663366,54107.0,54106.0,0.2]
[1725666765852,1.665366,54107.0,54106.0,0.2]
[1725666767531,1.69516207,54107.0,54106.0,0.2]
[1725666767761,1.69516207,54107.0,54106.0,0.214]
[1725666768245,1.66618,54107.0,54106.0,0.2]
[1725666769463,1.66618,54107.0,54106.0,0.213]
[1725666769711,1.66618,54107.0,54106.0,0.2]
[1725666769959,1.66918,54107.0,54106.0,0.2]
[1725666770207,1.66618,54107.0,54106.0,0.2]
[1725666770693,1.67118,54107.0,54106.0,0.21]
[1725666770918,1.70700829,54107.0,54106.0,0.2]
[1725666771141,1.70200829,54107.0,54106.0,0.21]
[1725666771409,1.70700829,54107.0,54106.0,0.21]
[1725666772322,1.70700829,54107.0,54106.0,0.2]
[1725666772781,1.70200829,54107.0,54106.0,0.211]
[1725666773024,1.70200829,54107.0,54106.0,0.2]
[1725666773270,1.70700829,54107.0,54106.0,0.2]
[1725666773717,1.70700829,54107.0,54106.0,0.21]
[1725666774175,1.70700829,54107.0,54106.0,0.2]
[1725666774419,1.70700829,54107.0,54106.0,0.211]
[1725666777366,1.73599043,54107.0,54106.0,0.211]
[1725666777589,1.69816214,54107.0,54106.0,0.211]
[1725666778062,1.80358277,54107.0,54106.0,0.211]
[1725666779219,1.80358277,54107.0,54106.0,0.2]
[1725666779447,1.80358277,54107.0,54106.0,0.212]
[1725666779685,1.79858277,54107.0,54106.0,0.212]
[1725666779917,1.80258277,54107.0,54106.0,0.212]
[1725666780140,1.80258277,54107.0,54106.0,0.213628]
[1725666780550,1.80258277,54107.0,54106.0,0.201628]
[1725666780809,0.21861414,54107.0,54106.0,0.457928]
[1725666781042,0.67147291,54107.0,54106.0,0.71721112]
[1725666781277,0.06029279,54107.0,54106.0,0.71721112]
[1725666781544,0.05629279,54107.0,54106.0,0.71721112]
[1725666781787,0.05629279,54107.0,54106.0,0.70521112]
[1725666781788,0.000814,54107.0,54106.0,0.70521112]
[1725666782027,0.185632,54107.0,54106.0,0.70521112]
[1725666782541,0.185632,54107.0,54106.0,0.71721112]
[1725666782792,0.000814,54107.0,54106.0,0.71721112]
[1725666783048,0.004814,54107.0,54106.0,0.70521112]
[1725666783298,0.000814,54107.0,54106.0,0.70521112]
[1725666783541,0.000814,54107.0,54106.0,0.71921112]
[1725666783762,0.001814,54107.0,54106.0,0.71821112]
[1725666784490,0.000814,54107.0,54106.0,0.70521112]
[1725666784726,0.03079149,54107.0,54106.0,0.71921112]
[1725666784982,0.03079149,54107.0,54106.0,0.91803312]
[1725666785216,0.03079149,54107.0,54106.0,1.28767712]
[1725666785663,0.0107094,54109.0,54108.0,0.20149163]
[1725666785916,0.0107094,54109.0,54108.0,0.47459163]
[1725666786363,0.0107094,54109.0,54108.0,0.47359163]
[1725666787061,0.94375436,54109.0,54108.0,0.45059163]
[1725666787283,0.94375436,54109.0,54108.0,0.46459163]
[1725666787284,0.75994236,54109.0,54108.0,0.46459163]
[1725666787756,0.75894236,54109.0,54108.0,0.45059163]
[1725666788227,1.12956636,54109.0,54108.0,0.47819163]
[1725666788696,0.75994236,54109.0,54108.0,0.47819163]
[1725666788933,0.48524817,54109.0,54108.0,0.47819163]
[1725666789654,0.48424817,54109.0,54108.0,0.46419163]
[1725666789880,0.48424817,54109.0,54108.0,0.47819163]
[1725666790108,0.184812,54109.0,54108.0,0.50519163]
[1725666790844,0.36961,54111.0,54108.0,0.50519163]
[1725666791334,0.36961,54111.0,54108.0,0.59451919]
[1725666791335,0.184808,54110.0,54108.0,0.59451919]
[1725666791560,0.184808,54110.0,54109.0,0.20009163]
[1725666792454,0.184808,54110.0,54109.0,0.20409163]
[1725666792901,0.184808,54110.0,54109.0,0.21809163]
[1725666793563,0.554425,54110.0,54109.0,0.21809163]
[1725666794460,0.184808,54110.0,54109.0,0.21809163]
[1725666794684,0.36959,54114.0,54109.0,0.21809163]
[1725666794685,0.38400802,54114.0,54109.0,0.56995609]
[1725666794921,0.184798,54113.0,54112.0,0.2541]
[1725666796416,0.00081,54117.0,54116.0,0.92794]
[1725666796637,0.00081,54117.0,54116.0,1.569616]
[1725666797134,0.00081,54117.0,54116.0,0.460888]
[1725666797350,0.00081,54117.0,54116.0,1.20004]
[1725666797565,0.00081,54117.0,54116.0,1.19904]
[1725666797778,0.00081,54117.0,54116.0,1.28680446]
[1725666798426,0.00181,54117.0,54116.0,1.31480446]
[1725666798640,0.00181,54117.0,54116.0,1.30080446]
[1725666798858,0.00181,54117.0,54116.0,1.22704]
[1725666799305,0.03078171,54117.0,54116.0,0.843464]
[1725666799539,0.03078171,54117.0,54116.0,0.487888]
[1725666799789,0.02978171,54117.0,54116.0,0.843464]
[1725666800280,0.02978171,54117.0,54116.0,0.857464]
[1725666800509,0.02978171,54117.0,54116.0,0.487888]
[1725666800724,0.02978171,54117.0,54116.0,0.459888]
[1725666800960,0.02978171,54117.0,54116.0,0.829464]
[1725666801193,0.02978171,54117.0,54116.0,0.857464]
[1725666801444,0.00081,54117.0,54116.0,0.843464]
[1725666801896,0.00081,54117.0,54116.0,1.21304]
[1725666802538,0.00081,54117.0,54116.0,0.843464]
[1725666803167,0.00081,54117.0,54116.0,1.21304]
[1725666803443,0.00081,54117.0,54116.0,0.843464]
[1725666803654,0.00081,54117.0,54116.0,0.3031]
[1725666803873,0.00081,54117.0,54116.0,0.857464]
[1725666805008,0.00081,54117.0,54116.0,0.3031]
[1725666805984,0.370379,54117.0,54116.0,0.3031]
[1725666806169,0.370379,54117.0,54116.0,0.1677]
[1725666806170,0.924732,54117.0,54116.0,0.1677]
[1725666806383,1.294301,54117.0,54116.0,0.1677]
[1725666806598,1.294301,54117.0,54116.0,0.36779163]
[1725666806822,1.33761406,54117.0,54116.0,0.36779163]
[1725666807058,0.00081,54117.0,54116.0,0.53857963]
[1725666807309,0.00081,54117.0,54116.0,1.03295563]
[1725666807539,0.00013,54125.0,54124.0,0.25]
[1725666807780,0.00013,54125.0,54124.0,0.46145459]
[1725666808000,0.00013,54125.0,54124.0,0.83097559]
[1725666808242,0.00013,54125.0,54124.0,0.827281]
[1725666809163,0.00013,54125.0,54124.0,0.841281]
[1725666811269,0.00013,54125.0,54124.0,0.855281]
[1725666812117,0.00013,54125.0,54124.0,0.48576]
[1725666812324,0.00013,54125.0,54124.0,0.301]
[1725666812552,0.56328396,54129.0,54128.0,0.01202251]
[1725666812780,1.11751396,54129.0,54128.0,0.03702251]
[1725666813237,1.11751396,54129.0,54128.0,0.01202251]
[1725666813238,1.48700096,54129.0,54128.0,0.01202251]
[1725666813495,1.48700096,54129.0,54125.0,0.01202251]
[1725666813496,1.03397,54126.0,54125.0,0.01202251]
[1725666813742,1.96678296,54126.0,54125.0,0.01202251]
[1725666814673,1.96778296,54126.0,54125.0,0.01202251]
[1725666814891,1.96778296,54126.0,54125.0,0.02002251]
[1725666815150,2.1283686,54126.0,54125.0,0.02002251]
[1725666815633,2.1283686,54126.0,54125.0,0.03402251]
[1725666816612,1.96778296,54126.0,54125.0,0.03402251]
[1725666816844,1.96678296,54126.0,54125.0,0.03402251]
[1725666817066,1.96678296,54126.0,54125.0,0.03702251]
[1725666817285,1.96678296,54126.0,54125.0,0.01502251]
[1725666817503,1.96678296,54126.0,54125.0,0.01202251]
[1725666817720,1.96678296,54126.0,54125.0,0.02602251]
[1725666817936,1.96678296,54126.0,54125.0,0.01502251]
[1725666818155,1.96678296,54126.0,54125.0,0.02902251]
[1725666818583,1.96678296,54126.0,54125.0,0.01502251]
[1725666818802,1.96678296,54126.0,54125.0,0.02902251]
[1725666819023,1.96678296,54126.0,54125.0,0.02602251]
[1725666820624,1.96678296,54126.0,54125.0,0.01202251]
[1725666821052,1.96678296,54126.0,54125.0,0.02602251]
[1725666821277,1.96678296,54126.0,54125.0,0.02702251]
[1725666821542,2.15176603,54126.0,54125.0,0.01302251]
[1725666821768,2.15376603,54126.0,54125.0,0.02702251]
[1725666822477,2.23674487,54126.0,54125.0,0.01302251]
[1725666822706,2.26240448,54126.0,54125.0,0.01302251]
[1725666822938,1.88362445,54126.0,54125.0,0.02702251]